fUSD/lending_fUSD_20251115
["ID","MTS","AMOUNT","RATE_DAILY","PERIOD"]
[394036526,1763208638277,-166.66,0.00016323,2]
[394036527,1763208638286,-275.03,0.00016373,2]
[394036528,1763208638296,-173.22,0.00016588,2]
[394036529,1763208638305,-96.02457544,0.00016647,2]
[394036558,1763208640702,-179.00542456,0.00016647,2]
[394036559,1763208640713,-166.66,0.00016659,2]
[394036560,1763208640723,-150.0,0.00016919,2]
[394036561,1763208640732,-275.03,0.00016921,2]
[394036562,1763208640742,-623.7,0.00016924,2]
[394036563,1763208640752,-166.66,0.00016996,2]
[394036564,1763208640761,-203.71704136,0.00016999,2]
[394036602,1763208644739,-296.28295864,0.00016999,2]
[394036604,1763208644750,-500.0,0.00016999,2]
[394036606,1763208644760,-500.0,0.00016999,2]
[394036608,1763208644771,-515.01217463,0.00016999,2]
[394036610,1763208644780,-250.0,0.00017,2]
[394036612,1763208644791,-382.25066373,0.00017144,2]
[394036618,1763208646601,-272.9139885,0.00017144,2]
[394036620,1763208692973,438.519,0.0001568,2]
[394036640,1763208855416,-151.45198032,0.000159,2]
[394036641,1763208855441,-793.35642125,0.000159,2]
[394036642,1763208855464,-151.0,0.00015997,2]
[394036643,1763208855486,-151.0,0.00015997,2]
[394036644,1763208855509,-151.0,0.00015997,2]
[394036645,1763208855532,-500.0,0.00015999,2]
[394036646,1763208855556,-198.22667736,0.00015999,2]
[394036647,1763208855579,-222.79889494,0.00015999,2]
[394036648,1763208855602,-208.17623949,0.00015999,2]
[394036649,1763208855626,-500.0,0.00015999,2]
[394036650,1763208855652,-500.0,0.00015999,2]
[394036651,1763208855678,-500.0,0.00015999,2]
[394036652,1763208855701,-510.63017788,0.00015999,2]
[394036653,1763208855726,-500.0,0.00015999,2]
[394036654,1763208855749,-500.0,0.00015999,2]
[394036655,1763208855773,-451.28203804,0.00015999,2]
[394036656,1763208855798,-500.0,0.00015999,2]
[394036657,1763208855822,-500.0,0.00015999,2]
[394036658,1763208855848,-500.0,0.00015999,2]
[394036659,1763208855871,-571.2860076,0.00015999,2]
[394036660,1763208855899,-500.0,0.00015999,2]
[394036661,1763208855924,-500.0,0.00015999,2]
[394036662,1763208855951,-500.0,0.00015999,2]
[394036663,1763208855978,-500.0,0.00015999,2]
[394036664,1763208856004,-500.0,0.00015999,2]
[394036665,1763208856029,-500.0,0.00015999,2]
[394036666,1763208856054,-500.0,0.00015999,2]
[394036667,1763208856080,-500.0,0.00015999,2]
[394036668,1763208856105,-500.0,0.00015999,2]
[394036669,1763208856131,-500.0,0.00015999,2]
[394036670,1763208856157,-500.0,0.00015999,2]
[394036671,1763208856182,-500.0,0.00015999,2]
[394036672,1763208856208,-500.0,0.00015999,2]
[394036673,1763208856233,-150.0,0.00015999,2]
[394036674,1763208856258,-500.0,0.00015999,2]
[394036675,1763208856284,-500.0,0.00015999,2]
[394036676,1763208856310,-500.0,0.00015999,2]
[394036677,1763208856336,-500.0,0.00015999,2]
[394036678,1763208856361,-500.0,0.00015999,2]
[394036679,1763208856386,-500.0,0.00015999,2]
[394036680,1763208856412,-500.0,0.00015999,2]
[394036681,1763208856439,-71414.79156312,0.00016,2]
[394036795,1763209541922,231.43,7.949e-05,2]
[394036796,1763209542118,231.43,8.367e-05,2]
[394036797,1763209542326,231.43,8.785e-05,2]
[394036798,1763209542536,231.43,9.204e-05,2]
[394036799,1763209542755,231.43,9.622e-05,2]
[394036800,1763209542940,231.43,0.0001004,2]
[394036801,1763209543359,231.43,0.00010459,2]
[394036802,1763209543577,231.43,0.00010877,2]
[394036803,1763209543791,231.43,0.00011295,2]
[394036804,1763209543984,231.43,0.00011714,2]
[394036805,1763209544185,231.43,0.00012132,2]
[394036806,1763209544398,231.43,0.00012551,2]
[394036807,1763209544596,231.43,0.00012969,2]
[394036808,1763209544793,231.43,0.00013387,2]
[394036809,1763209544995,231.43,0.00013806,2]
[394036810,1763209545186,231.43,0.00014224,2]
[394036811,1763209545378,231.43,0.00014642,2]
[394036812,1763209545582,231.43,0.00015061,2]
[394036813,1763209545808,231.43,0.00015479,2]
[394036830,1763209612105,7321.86614643,0.000162,5]
[394036874,1763209636661,300.0,0.000159,5]
[394037012,1763209815900,999.0,0.00015792,3]
[394037026,1763209831477,-231.43,0.00015897,2]
[394037027,1763209831487,-300.0,0.00015898,2]
[394037028,1763209831496,-96.99,0.00015898,2]
[394037029,1763209831534,-978.52481175,0.00015898,2]
[394037030,1763209831546,-124.48518825,0.00015898,2]
[394037031,1763209831555,-300.0,0.00015898,2]
[394037032,1763209831564,-250.0,0.00015898,2]
[394037033,1763209831574,-510.39490273,0.00015899,2]
[394037034,1763209831645,-390.37271931,0.00015899,2]
[394037035,1763209831655,-420.26169723,0.00015899,2]
[394037036,1763209831666,-44010.7815,0.00015899,2]
[394037271,1763209837803,-27.13696624,0.00015899,2]
[394037272,1763209839407,-959.79,0.00015899,2]
[394037275,1763209839464,-1095.40031449,0.00015899,2]
[394037276,1763209839473,-230.14288973,0.00015899,2]
[394037277,1763209839482,-500.0,0.00015899,2]
[394037278,1763209839491,-500.0,0.00015899,2]
[394037279,1763209839500,-331.86520965,0.00015899,2]
[394037280,1763209839511,-168.13479035,0.00015899,2]
[394037281,1763209839521,-500.0,0.00015899,2]
[394037282,1763209839531,-500.0,0.00015899,2]
[394037283,1763209839543,-288.92119921,0.00015899,2]
[394037284,1763209839553,-461.86146975,0.00015899,2]
[394037290,1763209843248,-322.47309924,0.00015899,2]
[394037291,1763209843307,-570.97918448,0.00015899,2]
[394037296,1763209893002,162.57289855,0.00015581,2]
[394037297,1763209893043,513.785,0.00015581,2]
[394037300,1763210001479,-265.33691968,0.00041318,30]
[394037301,1763210001516,-1519.16631385,0.00041318,30]
[394037302,1763210001552,-6000.0,0.00041318,120]
[394037303,1763210001587,-6949.00543936,0.00041318,120]
[394037304,1763210001623,-568.17162856,0.00041318,120]
[394037305,1763210001659,-467.0,0.00041318,30]
[394037306,1763210001694,-115018.92564415,0.00041318,30]
[394037307,1763210001730,-4019.8453411,0.00041318,30]
[394037308,1763210001764,-9667.0,0.00041318,30]
[394037309,1763210001798,-2300.88196016,0.00041318,30]
[394037310,1763210001832,-2949.89093689,0.00041318,30]
[394037311,1763210001868,-2526.97646193,0.00041318,30]
[394037312,1763210001904,-2574.16523183,0.00041318,30]
[394037313,1763210001940,-2500.0,0.00041318,30]
[394037314,1763210001974,-2261.91770739,0.00041318,30]
[394037315,1763210002011,-2431.82513436,0.00041318,30]
[394037316,1763210002046,-2852.84898793,0.00041318,30]
[394037317,1763210002083,-5026.98597227,0.00041318,60]
[394037318,1763210002119,-2849.30369087,0.00041318,30]
[394037319,1763210002155,-2412.03741388,0.00041318,30]
[394037320,1763210002192,-2462.5164256,0.00041318,30]
[394037321,1763210002228,-2605.31627947,0.00041318,30]
[394037322,1763210002265,-2997.25241305,0.00041318,30]
[394037323,1763210002304,-2347.97721028,0.00041318,30]
[394037324,1763210002341,-3158.37176883,0.00041318,30]
[394037325,1763210002380,-5000.0,0.00041318,30]
[394037326,1763210002416,-5000.0,0.00041318,30]
[394037327,1763210002451,-298.0,0.00041318,50]
[394037328,1763210002486,-4800969.28111856,0.00041318,60]
[394037329,1763210005956,-5000000.0,0.00041318,60]
[394037330,1763210009010,-4896492.31888144,0.00041318,60]
[394037331,1763210009045,-11376.7,0.00041318,30]
[394037332,1763210009078,-3705.17,0.00041318,120]
[394037333,1763210009112,-3408.0,0.00041318,30]
[394037334,1763210009146,-205.82839828,0.00041318,120]
[394037335,1763210009180,-500.0,0.00041318,120]
[394037336,1763210009214,-500.0,0.00041318,120]
[394037337,1763210009246,-612.74369041,0.00041318,120]
[394037338,1763210009280,-500.0,0.00041318,120]
[394037339,1763210009316,-500.0,0.00041318,120]
[394037340,1763210009348,-500.0,0.00041318,120]
[394037341,1763210009378,-315.61111317,0.00041318,120]
[394037342,1763210009409,-344.6802067,0.00041318,120]
[394037343,1763210009442,-500.0,0.00041318,120]
[394037344,1763210009475,-500.0,0.00041318,120]
[394037345,1763210009510,-617.44145575,0.00041318,120]
[394037346,1763210009544,-500.0,0.00041318,120]
[394037347,1763210009579,-500.0,0.00041318,120]
[394037348,1763210009612,-500.0,0.00041318,120]
[394037349,1763210009647,-500.0,0.00041318,120]
[394037350,1763210009679,-414.02516485,0.00041318,120]
[394037351,1763210009711,-388.93665379,0.00041318,120]
[394037352,1763210009741,-319.70657469,0.00041318,120]
[394037353,1763210009771,-500.0,0.00041318,120]
[394037354,1763210009802,-500.0,0.00041318,120]
[394037355,1763210009833,-613.70228375,0.00041318,120]
[394037356,1763210009865,-229.37055441,0.00041318,120]
[394037357,1763210009899,-500.0,0.00041318,120]
[394037358,1763210009931,-500.0,0.00041318,120]
[394037359,1763210009962,-500.0,0.00041318,120]
[394037360,1763210009992,-155.99579153,0.00041318,120]
[394037361,1763210010024,-500.0,0.00041318,120]
[394037362,1763210010055,-500.0,0.00041318,120]
[394037363,1763210010086,-500.0,0.00041318,120]
[394037364,1763210010117,-500.0,0.00041318,120]
[394037365,1763210010150,-500.0,0.00041318,120]
[394037366,1763210010181,-500.0,0.00041318,120]
[394037367,1763210010211,-500.0,0.00041318,120]
[394037368,1763210010242,-511.5348955,0.00041318,120]
[394037369,1763210010274,-500.0,0.00041318,120]
[394037370,1763210010309,-500.0,0.00041318,120]
[394037371,1763210010340,-500.0,0.00041318,120]
[394037372,1763210010371,-500.0,0.00041318,120]
[394037373,1763210010403,-500.0,0.00041318,120]
[394037374,1763210010433,-500.0,0.00041318,120]
[394037375,1763210010463,-500.0,0.00041318,120]
[394037376,1763210010493,-500.0,0.00041318,120]
[394037377,1763210010524,-271.70388939,0.00041318,120]
[394037378,1763210010553,-500.0,0.00041318,120]
[394037379,1763210010583,-380.65496098,0.00041318,120]
[394037380,1763210010614,-500.0,0.00041318,120]
[394037381,1763210010779,-500.0,0.00041318,120]
[394037382,1763210010854,-414.47220019,0.00041318,120]
[394037383,1763210010891,-626.76124734,0.00041318,120]
[394037384,1763210010928,-500.0,0.00041318,120]
[394037385,1763210010964,-500.0,0.00041318,120]
[394037386,1763210011000,-500.0,0.00041318,120]
[394037387,1763210011032,-567.04372998,0.00041318,120]
[394037388,1763210011064,-500.0,0.00041318,120]
[394037389,1763210011096,-356.31567511,0.00041318,120]
[394037390,1763210011129,-508.60557928,0.00041318,120]
[394037391,1763210011159,-420.36415985,0.00041318,120]
[394037392,1763210011190,-500.0,0.00041318,120]
[394037393,1763210011223,-500.0,0.00041318,120]
[394037394,1763210011255,-621.98377119,0.00041318,120]
[394037395,1763210011290,-500.0,0.00041318,120]
[394037396,1763210011320,-500.0,0.00041318,120]
[394037397,1763210011352,-500.0,0.00041318,120]
[394037398,1763210011384,-500.0,0.00041318,120]
[394037399,1763210011415,-500.0,0.00041318,120]
[394037400,1763210011446,-608.27019645,0.00041318,120]
[394037401,1763210011479,-610.87367768,0.00041318,120]
[394037402,1763210011510,-500.0,0.00041318,120]
[394037403,1763210011541,-500.0,0.00041318,120]
[394037404,1763210011572,-641.11435591,0.00041318,120]
[394037405,1763210011603,-507.05531772,0.00041318,120]
[394037406,1763210011634,-227.93454474,0.00041318,120]
[394037407,1763210011667,-500.0,0.00041318,120]
[394037408,1763210011701,-500.0,0.00041318,120]
[394037409,1763210011735,-500.0,0.00041318,120]
[394037410,1763210011769,-500.0,0.00041318,120]
[394037411,1763210011804,-555.88084771,0.00041318,120]
[394037412,1763210011836,-528.173278,0.00041318,120]
[394037413,1763210011869,-500.0,0.00041318,120]
[394037414,1763210011903,-409.43591911,0.00041318,120]
[394037415,1763210011936,-500.0,0.00041318,120]
[394037416,1763210011969,-314.96017597,0.00041318,120]
[394037417,1763210012002,-500.0,0.00041318,120]
[394037418,1763210012035,-500.0,0.00041318,120]
[394037419,1763210012069,-641.79361716,0.00041318,120]
[394037420,1763210012102,-500.0,0.00041318,120]
[394037421,1763210012139,-300.9040119,0.00041318,120]
[394037422,1763210012175,-500.0,0.00041318,120]
[394037423,1763210012209,-500.0,0.00041318,120]
[394037424,1763210012243,-500.0,0.00041318,120]
[394037425,1763210012276,-500.0,0.00041318,120]
[394037426,1763210012312,-500.0,0.00041318,120]
[394037427,1763210012345,-500.0,0.00041318,120]
[394037428,1763210012378,-570.65807703,0.00041318,120]
[394037429,1763210012409,-500.0,0.00041318,120]
[394037430,1763210012440,-334.3543324,0.00041318,120]
[394037431,1763210012474,-512.26614104,0.00041318,120]
[394037432,1763210012505,-405.96269917,0.00041318,120]
[394037433,1763210012535,-500.0,0.00041318,120]
[394037434,1763210012566,-500.0,0.00041318,120]
[394037435,1763210012596,-500.0,0.00041318,120]
[394037436,1763210012627,-500.0,0.00041318,120]
[394037437,1763210012660,-500.0,0.00041318,120]
[394037438,1763210012695,-221.39482824,0.00041318,120]
[394037439,1763210012728,-420.77348387,0.00041318,120]
[394037440,1763210012760,-500.0,0.00041318,120]
[394037441,1763210012793,-500.0,0.00041318,120]
[394037442,1763210012828,-500.0,0.00041318,120]
[394037443,1763210012864,-364.4401354,0.00041318,120]
[394037444,1763210012901,-612.45592334,0.00041318,120]
[394037445,1763210012935,-500.0,0.00041318,120]
[394037446,1763210012966,-211.13172111,0.00041318,120]
[394037447,1763210012997,-500.0,0.00041318,120]
[394037448,1763210013029,-500.0,0.00041318,120]
[394037449,1763210013060,-500.0,0.00041318,120]
[394037450,1763210013092,-631.67032439,0.00041318,120]
[394037451,1763210013123,-403.73653399,0.00041318,120]
[394037452,1763210013156,-153.07699106,0.00041318,120]
[394037453,1763210013189,-500.0,0.00041318,120]
[394037454,1763210013220,-309.76069408,0.00041318,120]
[394037455,1763210013252,-403.74436474,0.00041318,120]
[394037456,1763210013287,-355.5363124,0.00041318,120]
[394037457,1763210013320,-500.0,0.00041318,120]
[394037458,1763210013354,-500.0,0.00041318,120]
[394037459,1763210013389,-500.0,0.00041318,120]
[394037460,1763210013421,-624.87911839,0.00041318,120]
[394037461,1763210013453,-500.0,0.00041318,120]
[394037462,1763210013485,-222.55888812,0.00041318,120]
[394037463,1763210013517,-500.0,0.00041318,120]
[394037464,1763210013550,-310.03505717,0.00041318,120]
[394037465,1763210013584,-338.73506902,0.00041318,120]
[394037466,1763210013616,-500.0,0.00041318,120]
[394037467,1763210013649,-214.38051651,0.00041318,120]
[394037468,1763210013682,-500.0,0.00041318,120]
[394037469,1763210013718,-500.0,0.00041318,120]
[394037470,1763210013752,-500.0,0.00041318,120]
[394037471,1763210013784,-511.88156641,0.00041318,120]
[394037472,1763210013816,-391.6381603,0.00041318,120]
[394037473,1763210013852,-500.0,0.00041318,120]
[394037474,1763210013887,-500.0,0.00041318,120]
[394037475,1763210013922,-500.0,0.00041318,120]
[394037476,1763210013961,-548.53178027,0.00041318,120]
[394037477,1763210014014,-624.6087539,0.00041318,120]
[394037478,1763210014048,-500.0,0.00041318,120]
[394037479,1763210014083,-270.34918973,0.00041318,120]
[394037480,1763210014115,-500.0,0.00041318,120]
[394037481,1763210014151,-500.0,0.00041318,120]
[394037482,1763210014184,-500.0,0.00041318,120]
[394037483,1763210014217,-500.0,0.00041318,120]
[394037484,1763210014249,-300.0,0.00041318,120]
[394037485,1763210014284,-500.0,0.00041318,120]
[394037486,1763210014455,-500.0,0.00041318,120]
[394037487,1763210014489,-402.93897157,0.00041318,120]
[394037488,1763210014523,-500.0,0.00041318,120]
[394037489,1763210014554,-500.0,0.00041318,120]
[394037490,1763210014586,-213.99435443,0.00041318,120]
[394037491,1763210014617,-500.0,0.00041318,120]
[394037492,1763210014649,-500.0,0.00041318,120]
[394037493,1763210014681,-401.89592312,0.00041318,120]
[394037494,1763210014713,-525.87927355,0.00041318,120]
[394037495,1763210014744,-403.44211352,0.00041318,120]
[394037496,1763210014775,-500.0,0.00041318,120]
[394037497,1763210014808,-500.0,0.00041318,120]
[394037498,1763210014841,-500.0,0.00041318,120]
[394037499,1763210014874,-500.0,0.00041318,120]
[394037500,1763210014909,-508.94049526,0.00041318,120]
[394037501,1763210014942,-410.8650853,0.00041318,120]
[394037502,1763210014973,-400.47526879,0.00041318,120]
[394037503,1763210015004,-500.0,0.00041318,120]
[394037504,1763210015035,-500.0,0.00041318,120]
[394037505,1763210015065,-500.0,0.00041318,120]
[394037506,1763210015096,-500.0,0.00041318,120]
[394037507,1763210015127,-508.17061323,0.00041318,120]
[394037508,1763210015159,-500.0,0.00041318,120]
[394037509,1763210015190,-502.28136441,0.00041318,120]
[394037510,1763210015222,-438.67855724,0.00041318,120]
[394037511,1763210015253,-450.29210956,0.00041318,120]
[394037512,1763210015287,-500.0,0.00041318,120]
[394037513,1763210015318,-500.0,0.00041318,120]
[394037514,1763210015350,-337.51838801,0.00041318,120]
[394037515,1763210020844,-162.48161199,0.00041318,120]
[394037516,1763210020883,-519.32819175,0.00041318,120]
[394037517,1763210020916,-500.0,0.00041318,120]
[394037518,1763210020948,-500.0,0.00041318,120]
[394037519,1763210020979,-500.0,0.00041318,120]
[394037520,1763210021011,-506.70586102,0.00041318,120]
[394037521,1763210021042,-500.0,0.00041318,120]
[394037522,1763210021074,-500.0,0.00041318,120]
[394037523,1763210021106,-500.0,0.00041318,120]
[394037524,1763210021138,-500.0,0.00041318,120]
[394037525,1763210021170,-500.0,0.00041318,120]
[394037526,1763210021201,-631.6026673,0.00041318,120]
[394037527,1763210021231,-500.0,0.00041318,120]
[394037528,1763210021262,-362.77144115,0.00041318,120]
[394037529,1763210021296,-500.0,0.00041318,120]
[394037530,1763210021331,-500.0,0.00041318,120]
[394037531,1763210021364,-618.40367741,0.00041318,120]
[394037532,1763210021398,-500.0,0.00041318,120]
[394037533,1763210021433,-500.0,0.00041318,120]
[394037534,1763210021465,-500.0,0.00041318,120]
[394037535,1763210021496,-500.0,0.00041318,120]
[394037536,1763210021527,-204.46385831,0.00041318,120]
[394037537,1763210021558,-500.0,0.00041318,120]
[394037538,1763210021591,-500.0,0.00041318,120]
[394037539,1763210021622,-619.14345636,0.00041318,120]
[394037540,1763210021655,-500.0,0.00041318,120]
[394037541,1763210021688,-500.0,0.00041318,120]
[394037542,1763210021722,-500.0,0.00041318,120]
[394037543,1763210021759,-500.0,0.00041318,120]
[394037544,1763210021791,-500.0,0.00041318,120]
[394037545,1763210021824,-256.18140252,0.00041318,120]
[394037546,1763210021856,-500.0,0.00041318,120]
[394037547,1763210021890,-500.0,0.00041318,120]
[394037548,1763210021924,-500.0,0.00041318,120]
[394037549,1763210021958,-500.0,0.00041318,120]
[394037550,1763210021993,-500.0,0.00041318,120]
[394037551,1763210022030,-188.76240049,0.00041318,120]
[394037552,1763210022069,-555.19496943,0.00041318,120]
[394037553,1763210022113,-500.0,0.00041318,120]
[394037554,1763210022155,-500.0,0.00041318,120]
[394037555,1763210022191,-500.0,0.00041318,120]
[394037556,1763210022225,-229.83463085,0.00041318,120]
[394037557,1763210022259,-574.4498473,0.00041318,120]
[394037558,1763210022297,-500.0,0.00041318,120]
[394037559,1763210022329,-500.0,0.00041318,120]
[394037560,1763210022366,-500.0,0.00041318,120]
[394037561,1763210022398,-405.78918387,0.00041318,120]
[394037562,1763210022428,-500.0,0.00041318,120]
[394037563,1763210022460,-287.24532374,0.00041318,120]
[394037564,1763210022491,-401.4304275,0.00041318,120]
[394037565,1763210022521,-500.0,0.00041318,120]
[394037566,1763210022553,-500.0,0.00041318,120]
[394037567,1763210022584,-500.0,0.00041318,120]
[394037568,1763210022614,-515.83875737,0.00041318,120]
[394037569,1763210022645,-594.76761545,0.00041318,120]
[394037570,1763210022679,-500.0,0.00041318,120]
[394037571,1763210022711,-500.0,0.00041318,120]
[394037572,1763210022742,-500.0,0.00041318,120]
[394037573,1763210022967,-500.0,0.00041318,120]
[394037574,1763210023000,-500.0,0.00041318,120]
[394037575,1763210023033,-500.0,0.00041318,120]
[394037576,1763210023071,-634.30088323,0.00041318,120]
[394037577,1763210023118,-412.60818926,0.00041318,120]
[394037578,1763210023155,-500.0,0.00041318,120]
[394037579,1763210023190,-373.48046963,0.00041318,120]
[394037580,1763210023224,-500.0,0.00041318,120]
[394037581,1763210023258,-500.0,0.00041318,120]
[394037582,1763210023298,-500.0,0.00041318,120]
[394037583,1763210023333,-575.49980457,0.00041318,120]
[394037584,1763210023367,-494.91054258,0.00041318,120]
[394037585,1763210023400,-500.0,0.00041318,120]
[394037586,1763210023433,-500.0,0.00041318,120]
[394037587,1763210023466,-500.0,0.00041318,120]
[394037588,1763210023499,-511.20837187,0.00041318,120]
[394037589,1763210023532,-508.81306558,0.00041318,120]
[394037590,1763210023564,-500.0,0.00041318,120]
[394037591,1763210023596,-308.06457884,0.00041318,120]
[394037592,1763210023628,-500.0,0.00041318,120]
[394037593,1763210023666,-500.0,0.00041318,120]
[394037594,1763210023699,-500.0,0.00041318,120]
[394037595,1763210023733,-500.0,0.00041318,120]
[394037596,1763210023768,-500.0,0.00041318,120]
[394037597,1763210023802,-170.73160432,0.00041318,120]
[394037598,1763210023835,-623.09224886,0.00041318,120]
[394037599,1763210023868,-500.0,0.00041318,120]
[394037600,1763210023902,-308.2020533,0.00041318,120]
[394037601,1763210023935,-500.0,0.00041318,120]
[394037602,1763210023968,-500.0,0.00041318,120]
[394037603,1763210024002,-213.55821017,0.00041318,120]
[394037604,1763210024035,-385.29022372,0.00041318,120]
[394037605,1763210024069,-500.0,0.00041318,120]
[394037606,1763210024103,-500.0,0.00041318,120]
[394037607,1763210024137,-609.65336998,0.00041318,120]
[394037608,1763210024174,-500.0,0.00041318,120]
[394037609,1763210024213,-500.0,0.00041318,120]
[394037610,1763210024246,-228.8027871,0.00041318,120]
[394037611,1763210024280,-500.0,0.00041318,120]
[394037612,1763210024317,-500.0,0.00041318,120]
[394037613,1763210024351,-620.20624005,0.00041318,120]
[394037614,1763210024385,-416.56490561,0.00041318,120]
[394037615,1763210024419,-500.0,0.00041318,120]
[394037616,1763210024452,-500.0,0.00041318,120]
[394037617,1763210024484,-500.0,0.00041318,120]
[394037618,1763210024519,-500.0,0.00041318,120]
[394037619,1763210024558,-237.5922859,0.00041318,120]
[394037620,1763210024592,-521.71497281,0.00041318,120]
[394037621,1763210024626,-500.0,0.00041318,120]
[394037622,1763210024660,-503.77699416,0.00041318,120]
[394037623,1763210024695,-425.48794072,0.00041318,120]
[394037624,1763210024729,-500.0,0.00041318,120]
[394037625,1763210024762,-500.0,0.00041318,120]
[394037626,1763210024795,-500.0,0.00041318,120]
[394037627,1763210024829,-621.43630802,0.00041318,120]
[394037628,1763210024862,-309.51606451,0.00041318,120]
[394037629,1763210024896,-411.35388136,0.00041318,120]
[394037630,1763210024929,-500.0,0.00041318,120]
[394037631,1763210024961,-500.0,0.00041318,120]
[394037632,1763210024995,-500.0,0.00041318,120]
[394037633,1763210025027,-500.0,0.00041318,120]
[394037634,1763210025059,-445.97121589,0.00041318,120]
[394037635,1763210025091,-408.02085084,0.00041318,120]
[394037636,1763210025124,-500.0,0.00041318,120]
[394037637,1763210025160,-248.26234021,0.00041318,120]
[394037638,1763210025194,-500.0,0.00041318,120]
[394037639,1763210025227,-500.0,0.00041318,120]
[394037640,1763210025259,-500.0,0.00041318,120]
[394037641,1763210025298,-500.0,0.00041318,120]
[394037642,1763210025333,-500.0,0.00041318,120]
[394037643,1763210025368,-354.03091601,0.00041318,120]
[394037644,1763210025401,-500.0,0.00041318,120]
[394037645,1763210025434,-500.0,0.00041318,120]
[394037646,1763210025469,-500.0,0.00041318,120]
[394037647,1763210025502,-500.0,0.00041318,120]
[394037648,1763210025534,-648.85984279,0.00041318,120]
[394037649,1763210025566,-500.0,0.00041318,120]
[394037650,1763210025598,-500.0,0.00041318,120]
[394037651,1763210025630,-500.0,0.00041318,120]
[394037652,1763210025663,-500.0,0.00041318,120]
[394037653,1763210025697,-411.0765816,0.00041318,120]
[394037654,1763210025730,-500.0,0.00041318,120]
[394037655,1763210025771,-500.0,0.00041318,120]
[394037656,1763210025809,-419.25871431,0.00041318,120]
[394037657,1763210025844,-500.0,0.00041318,120]
[394037658,1763210025883,-500.0,0.00041318,120]
[394037659,1763210025923,-500.0,0.00041318,120]
[394037660,1763210025960,-500.0,0.00041318,120]
[394037661,1763210025993,-340.87657945,0.00041318,120]
[394037662,1763210026027,-500.0,0.00041318,120]
[394037663,1763210026061,-500.0,0.00041318,120]
[394037664,1763210026095,-500.0,0.00041318,120]
[394037665,1763210026128,-593.76208476,0.00041318,120]
[394037666,1763210026162,-500.0,0.00041318,120]
[394037667,1763210026194,-500.0,0.00041318,120]
[394037668,1763210026226,-500.0,0.00041318,120]
[394037669,1763210026261,-457.27577737,0.00041318,120]
[394037670,1763210026296,-176.60099068,0.00041318,120]
[394037671,1763210026328,-387.97631576,0.00041318,120]
[394037672,1763210026370,-500.0,0.00041318,120]
[394037673,1763210026402,-500.0,0.00041318,120]
[394037674,1763210026435,-500.0,0.00041318,120]
[394037675,1763210026468,-532.72554084,0.00041318,120]
[394037676,1763210026500,-500.0,0.00041318,120]
[394037677,1763210026748,-500.0,0.00041318,120]
[394037678,1763210026784,-500.0,0.00041318,120]
[394037679,1763210026816,-500.0,0.00041318,120]
[394037680,1763210026848,-500.0,0.00041318,120]
[394037681,1763210026880,-645.38127641,0.00041318,120]
[394037682,1763210026913,-632.59065033,0.00041318,120]
[394037683,1763210026945,-500.0,0.00041318,120]
[394037684,1763210026977,-500.0,0.00041318,120]
[394037685,1763210027009,-500.0,0.00041318,120]
[394037686,1763210027041,-625.93171171,0.00041318,120]
[394037687,1763210027074,-500.0,0.00041318,120]
[394037688,1763210027107,-500.0,0.00041318,120]
[394037689,1763210027140,-500.0,0.00041318,120]